[Event "Steinthor Baldursson memorial 2018"]
[Site "?"]
[Date "2018.01.04"]
[Round "2"]
[White "Apol, Luitjen Akselsson"]
[Black "Zarovs, Aleksandrs"]
[Result "0-1"]
[ECO "C27"]
[WhiteElo "1600"]
[BlackElo "1831"]
[PlyCount "90"]
[EventDate "2018.??.??"]
[EventType "swiss"]
[EventCountry "ISL"]
[SourceTitle "Kopavogur"]
[TimeControl "5400+30"]
[WhiteClock "0:58:05"]
[BlackClock "0:05:03"]

1. e4 {[%emt 0:00:00]} e5 {[%emt 0:00:00]} 2. Nc3 {[%emt 0:00:10]} Nf6 {[%emt 0:00:00]} 3. Bc4 {[%emt 0:00:29]} Nxe4 {[%emt 0:00:03]} 4. Nf3 {[%emt 0:02:46]} Nxc3 {[%emt 0:00:17]} 5. dxc3 {[%emt 0:00:08]} f6 {[%emt 0:01:33]} 6. O-O {[%emt 0:00:52]} d6 {[%emt 0:00:30]} 7. Re1 {[%emt 0:05:29]} Qe7 {[%emt 0:00:53]} 8. Be3 {[%emt 0:04:00]} Be6 {[%emt 0:01:47]} 9. Bxe6 {[%emt 0:02:32]} Qxe6 {[%emt 0:00:10]} 10. Nd4 {[%emt 0:02:27]} Qc8 {[%emt 0:03:30]} 11. Nf3 {[%emt 0:09:42]} c6 {[%emt 0:02:47]} 12. c4 {[%emt 0:02:09]} Be7 {[%emt 0:04:16]} 13. Nh4 {[%emt 0:12:07]} O-O {[%emt 0:02:11]} 14. f4 {[%emt 0:01:36]} f5 {[%emt 0:01:19]} 15. Qh5 {[%emt 0:02:22]} Bxh4 {[%emt 0:02:30]} 16. Qxh4 {[%emt 0:00:33]} Qe6 {[%emt 0:01:18]} 17. fxe5 {[%emt 0:01:04]} dxe5 {[%emt 0:00:42]} 18. Rad1 {[%emt 0:02:32]} Nd7 {[%emt 0:01:41]} 19. b3 {[%emt 0:05:55]} Nf6 {[%emt 0:00:57]} 20. Bc5 {[%emt 0:05:18]} Rfe8 {[%emt 0:03:15]} 21. Rd6 {[%emt 0:03:42]} Qf7 {[%emt 0:01:13]} 22. Red1 {[%emt 0:02:12]} f4 {[%emt 0:07:03]} 23. Ba3 {[%emt 0:05:07]} Qg6 {[%emt 0:02:09]} 24. R1d2 {[%emt 0:07:19]} Qf5 {[%emt 0:01:15]} 25. Re2 {[%emt 0:06:47]} Rad8 {[%emt 0:02:25]} 26. Qf2 {[%emt 0:03:17]} Rxd6 {[%emt 0:00:52]} 27. Bxd6 {[%emt 0:00:45]} Ne4 {[%emt 0:00:33]} 28. Rxe4 {[%emt 0:04:00]} Qxe4 {[%emt 0:00:12]} 29. h3 {[%emt 0:00:49]} Qg6 {[%emt 0:01:18]} 30. Ba3 {[%emt 0:00:56]} Qf5 {[%emt 0:01:17]} 31. Bc1 {[%emt 0:00:38]} Qd7 {[%emt 0:00:45]} 32. Qf3 {[%emt 0:01:52]} Rd8 {[%emt 0:00:59]} 33. Bb2 {[%emt 0:00:57]} Qd1+ {[%emt 0:00:42]} 34. Qxd1 {[%emt 0:00:09]} Rxd1+ {[%emt 0:00:02]} 35. Kh2 {[%emt 0:00:14]} Rd2 {[%emt 0:00:19]} 36. Bxe5 {[%emt 0:00:35]} f3 {[%emt 0:00:13]} 37. c3 {[%emt 0:02:25]} Rxg2+ {[%emt 0:00:13]} 38. Kh1 {[%emt 0:00:05]} Kf7 {[%emt 0:00:19]} 39. a4 {[%emt 0:00:29]} Ke6 {[%emt 0:00:16]} 40. Bd4 {[%emt 0:00:07]} a6 {[%emt 0:00:15]} 41. b4 {[%emt 0:00:40]} Kf5 {[%emt 0:00:23]} 42. a5 {[%emt 0:00:32]} Ke4 {[%emt 0:00:16]} 43. c5 {[%emt 0:00:18]} Kd3 {[%emt 0:00:28]} 44. Be5 {[%emt 0:00:56]} Ke2 {[%emt 0:01:01]} 45. Bd4 {[%emt 0:00:25]} Rg6 {[%emt 0:00:18]} 0-1

[Event "Steinthor Baldursson memorial 2018"]
[Site "?"]
[Date "2018.01.05"]
[Round "3"]
[White "Dijkhuis, Tycho"]
[Black "Tokranovs, Dmitrijs"]
[Result "0-1"]
[ECO "C24"]
[WhiteElo "2402"]
[BlackElo "2354"]
[PlyCount "56"]
[EventDate "2018.??.??"]
[EventType "swiss"]
[EventCountry "ISL"]
[SourceTitle "Kopavogur"]
[TimeControl "5400+30"]
[WhiteClock "0:22:08"]
[BlackClock "0:02:21"]

1. e4 {[%emt 0:00:00]} e5 {[%emt 0:00:00]} 2. f4 {[%emt 0:01:21]} exf4 {[%emt 0:02:03]} 3. Bc4 {[%emt 0:00:16]} Nf6 {[%emt 0:05:37]} 4. Nc3 {[%emt 0:00:47]} c6 {[%emt 0:08:43]} 5. d4 {[%emt 0:05:54]} Bb4 {[%emt 0:05:41]} 6. e5 {[%emt 0:05:48]} Ne4 {[%emt 0:00:11]} 7. Kf1 {[%emt 0:00:53]} Bxc3 {[%emt 0:07:03]} 8. bxc3 {[%emt 0:02:00]} d5 {[%emt 0:00:45]} 9. exd6 {[%emt 0:02:16]} O-O {[%emt 0:00:30]} 10. Bxf4 {[%emt 0:04:42]} Nxd6 {[%emt 0:03:39]} 11. Bd3 {[%emt 0:01:41]} Bf5 {[%emt 0:01:56]} 12. Nf3 {[%emt 0:06:08]} Bxd3+ {[%emt 0:08:04]} 13. Qxd3 {[%emt 0:00:59]} f5 {[%emt 0:02:31]} 14. Ng5 {[%emt 0:31:54]} Re8 {[%emt 0:04:41]} 15. Re1 {[%emt 0:02:37]} Rxe1+ {[%emt 0:02:03]} 16. Kxe1 {[%emt 0:00:04]} Nd7 {[%emt 0:04:10]} 17. Kd1 {[%emt 0:01:46]} Nb6 {[%emt 0:04:10]} 18. Qg3 {[%emt 0:22:43]} Ndc4 {[%emt 0:13:52]} 19. Re1 {[%emt 0:06:23]} Nd5 {[%emt 0:01:53]} 20. Bc1 {[%emt 0:00:06]} Qc7 {[%emt 0:00:51]} 21. Qh3 {[%emt 0:01:36]} h6 {[%emt 0:00:38]} 22. Ne6 {[%emt 0:00:32]} Qxh2 {[%emt 0:00:48]} 23. Qd3 {[%emt 0:00:29]} Qh5+ {[%emt 0:00:42]} 24. Re2 {[%emt 0:00:12]} Nde3+ {[%emt 0:00:37]} 25. Bxe3 {[%emt 0:00:19]} Nb2+ {[%emt 0:00:03]} 26. Kd2 {[%emt 0:00:08]} Nxd3 {[%emt 0:00:07]} 27. cxd3 Re8 {[%emt 0:00:19]} 28. Nf4 {[%emt 0:00:05]} Qg4 {[%emt 0:00:15]} 0-1

[Event "Steinthor Baldursson memorial 2018"]
[Site "?"]
[Date "2018.01.05"]
[Round "3"]
[White "Ragnarsson, Dagur"]
[Black "Birkisson, Bardur Orn"]
[Result "1/2-1/2"]
[ECO "D18"]
[WhiteElo "2332"]
[BlackElo "2190"]
[PlyCount "92"]
[EventDate "2018.??.??"]
[EventType "swiss"]
[EventCountry "ISL"]
[SourceTitle "Kopavogur"]
[TimeControl "5400+30"]
[WhiteClock "0:02:24"]
[BlackClock "0:01:43"]

1. d4 {[%emt 0:00:00]} d5 {[%emt 0:05:53]} 2. c4 {[%emt 0:00:00]} c6 {[%emt 0:00:23]} 3. Nf3 {[%emt 0:00:00]} Nf6 {[%emt 0:00:30]} 4. Nc3 {[%emt 0:00:00]} dxc4 {[%emt 0:00:27]} 5. a4 {[%emt 0:00:04]} Bf5 {[%emt 0:00:46]} 6. e3 {[%emt 0:00:07]} e6 {[%emt 0:00:17]} 7. Bxc4 {[%emt 0:00:05]} Bb4 {[%emt 0:00:19]} 8. O-O {[%emt 0:00:07]} Nbd7 {[%emt 0:00:30]} 9. Nh4 {[%emt 0:00:07]} O-O {[%emt 0:05:51]} 10. Nxf5 {[%emt 0:00:09]} exf5 {[%emt 0:02:17]} 11. Qc2 {[%emt 0:00:06]} g6 {[%emt 0:01:36]} 12. f3 {[%emt 0:00:06]} a5 {[%emt 0:13:29]} 13. Kh1 {[%emt 0:18:10]} Nb6 {[%emt 0:07:15]} 14. Bb3 {[%emt 0:00:11]} Re8 {[%emt 0:29:19]} 15. Bd2 {[%emt 0:11:49]} Bf8 {[%emt 0:04:59]} 16. Rad1 {[%emt 0:02:58]} Nbd5 {[%emt 0:04:40]} 17. e4 {[%emt 0:00:36]} Nb4 {[%emt 0:00:54]} 18. Qb1 {[%emt 0:00:24]} Bg7 {[%emt 0:04:46]} 19. exf5 {[%emt 0:01:48]} Nfd5 {[%emt 0:00:41]} 20. f4 {[%emt 0:12:43]} Bxd4 {[%emt 0:02:28]} 21. fxg6 {[%emt 0:02:52]} hxg6 {[%emt 0:00:23]} 22. f5 {[%emt 0:00:50]} Kg7 {[%emt 0:06:55]} 23. Rf3 {[%emt 0:14:52]} Rh8 {[%emt 0:02:01]} 24. Nxd5 {[%emt 0:05:50]} Nxd5 {[%emt 0:00:19]} 25. Bxd5 {[%emt 0:00:27]} cxd5 {[%emt 0:01:08]} 26. h3 {[%emt 0:10:12]} Qd7 {[%emt 0:01:18]} 27. Bg5 {[%emt 0:00:47]} Rh5 {[%emt 0:01:26]} 28. Rxd4 {[%emt 0:01:16]} Rxg5 {[%emt 0:00:07]} 29. f6+ {[%emt 0:01:02]} Kg8 {[%emt 0:00:20]} 30. Qc1 {[%emt 0:04:39]} Rh5 {[%emt 0:01:28]} 31. g4 {[%emt 0:00:03]} Rh8 {[%emt 0:01:22]} 32. Qg5 {[%emt 0:00:25]} Re8 {[%emt 0:00:37]} 33. Qxd5 {[%emt 0:01:23]} Qc7 {[%emt 0:01:05]} 34. Rd1 {[%emt 0:04:51]} Qc2 {[%emt 0:00:29]} 35. Rc3 {[%emt 0:03:21]} Qxb2 {[%emt 0:00:24]} 36. Qb5 {[%emt 0:00:59]} Qxb5 {[%emt 0:00:37]} 37. axb5 {[%emt 0:00:04]} Re6 {[%emt 0:00:29]} 38. Rd7 {[%emt 0:02:44]} Rxf6 {[%emt 0:00:13]} 39. Rxb7 {[%emt 0:00:05]} Kg7 {[%emt 0:00:30]} 40. Ra7 {[%emt 0:01:29]} a4 {[%emt 0:00:49]} 41. Rxa4 {[%emt 0:00:09]} Rf1+ {[%emt 0:00:05]} 42. Kg2 {[%emt 0:00:04]} Rb1 {[%emt 0:00:04]} 43. Ra5 {[%emt 0:00:32]} Rb8 {[%emt 0:00:30]} 44. Rc5 {[%emt 0:00:09]} Rb3 {[%emt 0:00:09]} 45. Ra7 {[%emt 0:02:23]} R3xb5 {[%emt 0:00:21]} 46. Rxb5 {[%emt 0:00:19]} Rxb5 {[%emt 0:00:07]} 1/2-1/2

[Event "Steinthor Baldursson memorial 2018"]
[Site "?"]
[Date "2018.01.05"]
[Round "3"]
[White "Johannesson, Oliver Aron"]
[Black "Thorhallsson, Simon"]
[Result "1/2-1/2"]
[ECO "A48"]
[WhiteElo "2277"]
[BlackElo "2040"]
[PlyCount "71"]
[EventDate "2018.??.??"]
[EventType "swiss"]
[EventCountry "ISL"]
[SourceTitle "Kopavogur"]
[TimeControl "5400+30"]
[WhiteClock "0:27:46"]
[BlackClock "0:24:05"]

1. d4 {[%emt 0:07:54]} Nf6 {[%emt 0:00:00]} 2. Nf3 {[%emt 0:00:55]} g6 {[%emt 0:00:16]} 3. Bf4 {[%emt 0:00:22]} Bg7 {[%emt 0:00:08]} 4. e3 {[%emt 0:00:04]} O-O {[%emt 0:00:08]} 5. Be2 {[%emt 0:00:05]} c5 {[%emt 0:00:17]} 6. c3 {[%emt 0:00:43]} b6 {[%emt 0:00:29]} 7. O-O {[%emt 0:01:29]} Bb7 {[%emt 0:00:07]} 8. Nbd2 {[%emt 0:00:28]} d5 {[%emt 0:01:08]} 9. a4 {[%emt 0:02:03]} Nc6 {[%emt 0:01:02]} 10. h3 {[%emt 0:00:41]} Nd7 {[%emt 0:03:09]} 11. Re1 {[%emt 0:01:39]} e5 {[%emt 0:03:16]} 12. dxe5 {[%emt 0:00:15]} Ndxe5 {[%emt 0:00:13]} 13. Nxe5 {[%emt 0:00:51]} Nxe5 {[%emt 0:00:10]} 14. a5 {[%emt 0:00:20]} Qe7 {[%emt 0:19:17]} 15. Nf3 {[%emt 0:04:16]} Bc6 {[%emt 0:06:03]} 16. Bf1 {[%emt 0:10:57]} Nxf3+ {[%emt 0:04:17]} 17. Qxf3 {[%emt 0:00:14]} Qe6 {[%emt 0:00:32]} 18. Qd1 {[%emt 0:01:24]} b5 {[%emt 0:04:57]} 19. a6 {[%emt 0:01:38]} b4 {[%emt 0:02:46]} 20. cxb4 {[%emt 0:08:24]} Bxb2 {[%emt 0:03:21]} 21. b5 {[%emt 0:00:14]} Bd7 {[%emt 0:01:11]} 22. Rb1 {[%emt 0:00:58]} Be5 {[%emt 0:06:00]} 23. Bxe5 {[%emt 0:12:07]} Qxe5 {[%emt 0:00:06]} 24. e4 {[%emt 0:00:35]} d4 {[%emt 0:01:15]} 25. Bc4 {[%emt 0:00:26]} Be6 {[%emt 0:03:57]} 26. Qd3 {[%emt 0:00:23]} Bxc4 {[%emt 0:02:16]} 27. Qxc4 {[%emt 0:00:13]} Rab8 {[%emt 0:00:18]} 28. f4 {[%emt 0:04:47]} Qc7 {[%emt 0:03:45]} 29. e5 {[%emt 0:00:43]} Rb6 {[%emt 0:00:48]} 30. Rbc1 {[%emt 0:04:26]} Qd7 {[%emt 0:02:57]} 31. Qxc5 {[%emt 0:04:43]} Rxb5 {[%emt 0:00:11]} 32. Qc6 {[%emt 0:06:20]} Rd8 {[%emt 0:02:29]} 33. Red1 {[%emt 0:01:30]} Rb6 {[%emt 0:01:09]} 34. Qxd7 {[%emt 0:01:11]} Rxd7 {[%emt 0:00:04]} 35. Rc4 {[%emt 0:00:30]} Rxa6 {[%emt 0:01:42]} 36. Rcxd4 {[%emt 0:00:07]} 1/2-1/2

[Event "Steinthor Baldursson memorial 2018"]
[Site "?"]
[Date "2018.01.05"]
[Round "3"]
[White "Jonsson, Gauti Pall"]
[Black "Davidsson, Oskar Vikingur"]
[Result "1-0"]
[ECO "B23"]
[WhiteElo "2161"]
[BlackElo "1854"]
[PlyCount "131"]
[EventDate "2018.??.??"]
[EventType "swiss"]
[EventCountry "ISL"]
[SourceTitle "Kopavogur"]
[TimeControl "5400+30"]
[WhiteClock "0:53:12"]
[BlackClock "0:19:50"]

1. e4 {[%emt 0:00:00]} c5 {[%emt 0:00:00]} 2. Nc3 {[%emt 0:00:00]} e6 {[%emt 0:00:00]} 3. f4 {[%emt 0:00:08]} d5 {[%emt 0:00:00]} 4. Nf3 {[%emt 0:00:39]} Nc6 {[%emt 0:00:06]} 5. Bb5 {[%emt 0:01:06]} Nge7 {[%emt 0:01:12]} 6. exd5 {[%emt 0:01:45]} exd5 {[%emt 0:00:07]} 7. Qe2 {[%emt 0:00:33]} f6 {[%emt 0:00:39]} 8. Bxc6+ {[%emt 0:03:14]} bxc6 {[%emt 0:00:11]} 9. O-O {[%emt 0:01:15]} Kf7 {[%emt 0:00:32]} 10. b3 {[%emt 0:03:09]} Ng6 {[%emt 0:01:23]} 11. g3 {[%emt 0:01:10]} Bd6 {[%emt 0:01:39]} 12. d3 {[%emt 0:03:33]} Re8 {[%emt 0:01:39]} 13. Qf2 {[%emt 0:01:20]} Bh3 {[%emt 0:02:10]} 14. Re1 {[%emt 0:01:37]} Rxe1+ {[%emt 0:02:26]} 15. Nxe1 {[%emt 0:00:52]} Qe7 {[%emt 0:01:14]} 16. Bd2 {[%emt 0:01:34]} Re8 {[%emt 0:02:31]} 17. Nf3 {[%emt 0:01:23]} Bg4 {[%emt 0:01:24]} 18. Re1 {[%emt 0:01:11]} Qd7 {[%emt 0:00:12]} 19. Rxe8 {[%emt 0:00:50]} Qxe8 {[%emt 0:00:06]} 20. Na4 {[%emt 0:01:49]} Qe7 {[%emt 0:00:39]} 21. Ne1 {[%emt 0:01:43]} h5 {[%emt 0:01:33]} 22. Ng2 {[%emt 0:01:57]} d4 {[%emt 0:03:24]} 23. Nb2 {[%emt 0:05:02]} Qe6 {[%emt 0:00:47]} 24. Nc4 {[%emt 0:01:55]} Bc7 {[%emt 0:01:02]} 25. Qe1 {[%emt 0:01:29]} Ne7 {[%emt 0:01:46]} 26. Qxe6+ {[%emt 0:01:40]} Kxe6 {[%emt 0:00:06]} 27. Kf2 {[%emt 0:01:31]} Nd5 {[%emt 0:01:01]} 28. a3 {[%emt 0:01:33]} Bd8 {[%emt 0:02:11]} 29. Ne1 {[%emt 0:05:17]} Bc7 {[%emt 0:01:21]} 30. Kg2 {[%emt 0:00:42]} Kd7 {[%emt 0:02:52]} 31. h3 {[%emt 0:01:45]} Be6 {[%emt 0:00:11]} 32. Nf3 {[%emt 0:00:57]} Ne7 {[%emt 0:00:26]} 33. Nb2 {[%emt 0:06:33]} Ng6 {[%emt 0:00:38]} 34. Nd1 {[%emt 0:01:02]} Bd5 {[%emt 0:01:28]} 35. Kf2 {[%emt 0:02:30]} Bd6 {[%emt 0:00:28]} 36. f5 {[%emt 0:04:19]} Bxf3 {[%emt 0:01:25]} 37. Kxf3 {[%emt 0:00:10]} Ne5+ {[%emt 0:00:21]} 38. Ke4 {[%emt 0:01:58]} Nf7 {[%emt 0:01:24]} 39. Bf4 {[%emt 0:01:30]} Bxf4 {[%emt 0:00:09]} 40. Kxf4 {[%emt 0:00:11]} Kd6 {[%emt 0:00:44]} 41. Nf2 {[%emt 0:01:45]} Ne5 {[%emt 0:03:09]} 42. Ne4+ {[%emt 0:03:59]} Kd5 {[%emt 0:00:06]} 43. g4 {[%emt 0:00:40]} hxg4 {[%emt 0:03:24]} 44. hxg4 {[%emt 0:00:21]} Nf7 {[%emt 0:00:10]} 45. Kg3 {[%emt 0:02:57]} Ng5 {[%emt 0:02:00]} 46. Nd2 {[%emt 0:02:15]} Nf7 {[%emt 0:01:57]} 47. Kh4 {[%emt 0:00:47]} Ke5 {[%emt 0:02:04]} 48. Kh5 {[%emt 0:01:38]} Nh6 {[%emt 0:00:16]} 49. Ne4 {[%emt 0:00:54]} c4 {[%emt 0:06:00]} 50. bxc4 {[%emt 0:01:06]} a6 {[%emt 0:00:15]} 51. Nc5 {[%emt 0:03:52]} Kf4 {[%emt 0:00:15]} 52. Ne6+ {[%emt 0:00:22]} Kg3 {[%emt 0:00:05]} 53. Nxd4 {[%emt 0:00:53]} Nxg4 {[%emt 0:00:08]} 54. Nxc6 {[%emt 0:01:34]} Ne3 {[%emt 0:00:10]} 55. Ne7 {[%emt 0:00:23]} Nxc2 {[%emt 0:02:13]} 56. Kg6 {[%emt 0:02:26]} Nxa3 {[%emt 0:00:34]} 57. Kxg7 {[%emt 0:00:19]} Nc2 {[%emt 0:00:30]} 58. Kxf6 {[%emt 0:00:58]} a5 {[%emt 0:00:07]} 59. Nd5 {[%emt 0:00:17]} a4 {[%emt 0:00:56]} 60. Nc3 {[%emt 0:00:26]} a3 {[%emt 0:00:10]} 61. Kg7 {[%emt 0:00:45]} Nd4 {[%emt 0:00:22]} 62. f6 {[%emt 0:00:31]} Kf3 {[%emt 0:01:32]} 63. f7 {[%emt 0:00:25]} Ne6+ {[%emt 0:00:17]} 64. Kf6 {[%emt 0:00:27]} Nf8 {[%emt 0:00:04]} 65. c5 {[%emt 0:01:33]} Nd7+ {[%emt 0:01:07]} 66. Ke7 {[%emt 0:00:45]} 1-0

[Event "Steinthor Baldursson memorial 2018"]
[Site "?"]
[Date "2018.01.05"]
[Round "3"]
[White "Mai, Aron Thor"]
[Black "Johannsson, Birkir Isak"]
[Result "1/2-1/2"]
[ECO "B20"]
[WhiteElo "2066"]
[BlackElo "1760"]
[PlyCount "33"]
[EventDate "2018.??.??"]
[EventType "swiss"]
[EventCountry "ISL"]
[SourceTitle "Kopavogur"]
[TimeControl "5400+30"]
[WhiteClock "0:50:40"]
[BlackClock "0:27:59"]

1. e4 {[%emt 0:00:00]} c5 {[%emt 0:12:18]} 2. d3 {[%emt 0:00:00]} Nc6 {[%emt 0:00:13]} 3. Be2 {[%emt 0:00:00]} g6 {[%emt 0:01:28]} 4. f4 {[%emt 0:00:00]} Bg7 {[%emt 0:00:15]} 5. Nf3 {[%emt 0:00:00]} e6 {[%emt 0:00:30]} 6. O-O {[%emt 0:00:07]} Nge7 {[%emt 0:00:05]} 7. Qe1 {[%emt 0:00:06]} O-O {[%emt 0:00:34]} 8. Qh4 {[%emt 0:00:42]} d6 {[%emt 0:04:11]} 9. c3 {[%emt 0:02:44]} b6 {[%emt 0:03:31]} 10. Na3 {[%emt 0:05:10]} Bb7 {[%emt 0:03:58]} 11. Ng5 {[%emt 0:07:12]} h6 {[%emt 0:00:19]} 12. Nh3 {[%emt 0:00:01]} f5 {[%emt 0:00:56]} 13. g4 {[%emt 0:07:29]} Qe8 {[%emt 0:06:01]} 14. Bd1 {[%emt 0:07:31]} Na5 {[%emt 0:07:33]} 15. Qe1 {[%emt 0:15:29]} Qd7 {[%emt 0:03:25]} 16. Nf2 {[%emt 0:07:55]} Rae8 {[%emt 0:02:03]} 17. Nc2 {[%emt 0:16:05]} 1/2-1/2

[Event "Steinthor Baldursson memorial 2018"]
[Site "?"]
[Date "2018.01.05"]
[Round "3"]
[White "Eydsteinsson, Silas"]
[Black "Briem, Benedikt"]
[Result "*"]
[ECO "A04"]
[WhiteElo "2035"]
[BlackElo "1464"]
[PlyCount "81"]
[EventDate "2018.??.??"]
[EventType "swiss"]
[EventCountry "ISL"]
[SourceTitle "Kopavogur"]
[TimeControl "5400+30"]
[WhiteClock "0:49:29"]
[BlackClock "0:11:05"]

1. Nf3 {[%emt 0:00:00]} c5 {[%emt 0:00:00]} 2. g3 {[%emt 0:00:15]} d6 {[%emt 0:00:00]} 3. Bg2 {[%emt 0:00:07]} Nc6 {[%emt 0:00:00]} 4. d3 {[%emt 0:00:21]} e5 {[%emt 0:00:00]} 5. e4 {[%emt 0:00:44]} g6 {[%emt 0:00:14]} 6. O-O {[%emt 0:00:49]} h6 {[%emt 0:00:28]} 7. c3 {[%emt 0:02:23]} Bg7 {[%emt 0:00:08]} 8. Qe1 {[%emt 0:11:13]} Nge7 {[%emt 0:00:33]} 9. Nfd2 {[%emt 0:02:25]} O-O {[%emt 0:00:54]} 10. f4 {[%emt 0:02:23]} f5 {[%emt 0:02:37]} 11. a4 {[%emt 0:06:21]} Be6 {[%emt 0:02:56]} 12. Nc4 {[%emt 0:10:45]} exf4 {[%emt 0:05:30]} 13. Bxf4 {[%emt 0:22:55]} Bxc4 {[%emt 0:06:48]} 14. dxc4 {[%emt 0:00:28]} g5 {[%emt 0:04:14]} 15. Be3 {[%emt 0:07:26]} Ne5 {[%emt 0:07:53]} 16. Qe2 {[%emt 0:04:38]} Qc7 {[%emt 0:02:49]} 17. Nd2 {[%emt 0:06:15]} Ng4 {[%emt 0:02:48]} 18. exf5 {[%emt 0:01:05]} Nxe3 {[%emt 0:01:46]} 19. Qxe3 {[%emt 0:00:27]} Be5 {[%emt 0:04:26]} 20. Qd3 {[%emt 0:04:21]} Rf7 {[%emt 0:04:01]} 21. Rf2 {[%emt 0:01:32]} Qd7 {[%emt 0:00:58]} 22. Be4 {[%emt 0:03:46]} Raf8 {[%emt 0:00:28]} 23. Nf1 {[%emt 0:00:26]} Rxf5 {[%emt 0:02:32]} 24. Bxf5 {[%emt 0:00:46]} Nxf5 {[%emt 0:00:21]} 25. Ne3 {[%emt 0:01:39]} Nxe3 {[%emt 0:01:02]} 26. Rxf8+ {[%emt 0:00:09]} Kxf8 {[%emt 0:00:06]} 27. Qxe3 {[%emt 0:00:08]} Qe6 {[%emt 0:00:36]} 28. Qf3+ {[%emt 0:00:40]} Kg7 {[%emt 0:01:05]} 29. Qxb7+ {[%emt 0:00:10]} Kg6 {[%emt 0:00:15]} 30. Qe4+ {[%emt 0:00:30]} Kg7 {[%emt 0:00:21]} 31. Kg2 {[%emt 0:00:18]} h5 {[%emt 0:00:36]} 32. Rf1 {[%emt 0:00:24]} Qg4 {[%emt 0:01:14]} 33. Qxg4 {[%emt 0:01:35]} hxg4 {[%emt 0:00:01]} 34. h3 {[%emt 0:00:08]} gxh3+ {[%emt 0:00:11]} 35. Kxh3 {[%emt 0:00:02]} Bf6 {[%emt 0:00:23]} 36. Kg4 {[%emt 0:00:08]} Kg6 {[%emt 0:00:15]} 37. Ra1 {[%emt 0:01:00]} a5 {[%emt 0:00:56]} 38. Ra3 {[%emt 0:00:06]} Be7 {[%emt 0:00:29]} 39. Rb3 {[%emt 0:00:04]} Bd8 {[%emt 0:00:18]} 40. Rb8 {[%emt 0:00:03]} Bc7 {[%emt 0:00:19]} 41. Rc8 *

[Event "Steinthor Baldursson memorial 2018"]
[Site "?"]
[Date "2018.01.05"]
[Round "3"]
[White "Mai, Alexander Oliver"]
[Black "Fjallheim, Leif Reinert"]
[Result "1-0"]
[ECO "A05"]
[WhiteElo "1970"]
[BlackElo "1720"]
[PlyCount "73"]
[EventDate "2018.??.??"]
[EventType "swiss"]
[EventCountry "ISL"]
[SourceTitle "Kopavogur"]
[TimeControl "5400+30"]
[WhiteClock "0:00:42"]
[BlackClock "0:20:14"]

1. Nf3 {[%emt 0:00:00]} Nf6 {[%emt 0:00:00]} 2. g3 {[%emt 0:00:03]} g6 {[%emt 0:00:11]} 3. Bg2 {[%emt 0:00:05]} Bg7 {[%emt 0:00:08]} 4. O-O {[%emt 0:00:08]} O-O {[%emt 0:01:50]} 5. c4 {[%emt 0:00:21]} d6 {[%emt 0:01:20]} 6. Nc3 {[%emt 0:00:30]} e5 {[%emt 0:07:20]} 7. d3 {[%emt 0:00:10]} Nc6 {[%emt 0:01:29]} 8. Bd2 {[%emt 0:04:06]} Nd7 {[%emt 0:13:42]} 9. Rb1 {[%emt 0:03:36]} f5 {[%emt 0:02:52]} 10. Bg5 {[%emt 0:04:20]} Nf6 {[%emt 0:02:40]} 11. Nd5 {[%emt 0:02:16]} Ne7 {[%emt 0:04:01]} 12. Nxf6+ {[%emt 0:05:13]} Bxf6 {[%emt 0:00:16]} 13. Bxf6 {[%emt 0:00:22]} Rxf6 {[%emt 0:00:13]} 14. Nd2 {[%emt 0:01:02]} g5 {[%emt 0:15:10]} 15. d4 {[%emt 0:22:28]} exd4 {[%emt 0:05:26]} 16. Nf3 {[%emt 0:00:40]} h6 {[%emt 0:04:32]} 17. Nxd4 {[%emt 0:01:35]} Ng6 {[%emt 0:08:43]} 18. b3 {[%emt 0:07:56]} c6 {[%emt 0:01:59]} 19. e3 {[%emt 0:03:00]} Qe7 {[%emt 0:05:43]} 20. Qd2 {[%emt 0:01:40]} Bd7 {[%emt 0:01:22]} 21. Rbe1 {[%emt 0:01:17]} c5 {[%emt 0:09:59]} 22. Bxb7 {[%emt 0:02:04]} Re8 {[%emt 0:02:47]} 23. Bd5+ {[%emt 0:00:50]} Kh7 {[%emt 0:01:52]} 24. Ne2 {[%emt 0:02:30]} h5 {[%emt 0:04:20]} 25. Nc3 {[%emt 0:01:52]} h4 {[%emt 0:02:21]} 26. f4 {[%emt 0:01:38]} g4 {[%emt 0:00:39]} 27. Bg2 {[%emt 0:01:15]} h3 {[%emt 0:00:58]} 28. Bh1 {[%emt 0:01:22]} Be6 {[%emt 0:01:03]} 29. e4 {[%emt 0:00:44]} Qd7 {[%emt 0:00:41]} 30. exf5 {[%emt 0:02:30]} Bxf5 {[%emt 0:00:47]} 31. Ne4 {[%emt 0:00:30]} Bxe4 {[%emt 0:00:32]} 32. Bxe4 {[%emt 0:00:05]} Kg7 {[%emt 0:00:29]} 33. f5 {[%emt 0:02:02]} Rxe4 {[%emt 0:00:17]} 34. Rxe4 {[%emt 0:00:31]} Rxf5 {[%emt 0:00:12]} 35. Rfe1 {[%emt 0:08:35]} Rf6 {[%emt 0:01:01]} 36. Qg5 {[%emt 0:00:49]} Qb7 {[%emt 0:00:23]} 37. Re7+ {[%emt 0:00:11]} 1-0